[Event "*** Titled Tuesday Blitz"]
[Site "Chess.com"]
[Date "2019.12.03"]
[Round "9"]
[White "iLuusions"]
[Black "Saitama_Hero"]
[Result "1-0"]
[WhiteElo "2646"]
[BlackElo "2317"]
[TimeControl "180+2"]
[EndTime "15:02:28 PST"]
[Termination "iLuusions won by checkmate"]

1. d4 {[%clk 0:02:55.6]} 1... Nf6 {[%clk 0:02:59.5]} 2. c4 {[%clk 0:02:56.7]}
2... g6 {[%clk 0:02:59.6]} 3. Nc3 {[%clk 0:02:57.4]} 3... d5 {[%clk 0:03:00.9]}
4. Nf3 {[%clk 0:02:57.5]} 4... Bg7 {[%clk 0:03:00.5]} 5. cxd5 {[%clk 0:02:58.9]}
5... Nxd5 {[%clk 0:03:00.3]} 6. h4 {[%clk 0:02:58.5]} 6... h5 {[%clk 0:02:36.4]}
7. Bd2 {[%clk 0:01:48.9]} 7... Nb6 {[%clk 0:02:30.8]} 8. e3 {[%clk 0:01:39.5]}
8... O-O {[%clk 0:02:30.9]} 9. Bd3 {[%clk 0:01:38.1]} 9... Bg4 {[%clk 0:02:31]}
10. Qb3 {[%clk 0:01:37.3]} 10... Nc6 {[%clk 0:02:25.2]} 11. Ng5 {[%clk
0:01:33.7]} 11... a5 {[%clk 0:01:45.2]} 12. Bxg6 {[%clk 0:01:33.6]} 12... e6
{[%clk 0:01:42.5]} 13. Be4 {[%clk 0:01:26.4]} 13... a4 {[%clk 0:01:39.1]} 14.
Qc2 {[%clk 0:01:27.7]} 14... Nb4 {[%clk 0:01:31.7]} 15. Qb1 {[%clk 0:01:28.5]}
15... Nc4 {[%clk 0:01:24.6]} 16. Bxb7 {[%clk 0:01:06.9]} 16... Rb8 {[%clk
0:01:17.7]} 17. Qh7# {[%clk 0:01:06.9]} 1-0

[Event "*** Titled Tuesday Blitz"]
[Site "Chess.com"]
[Date "2019.12.03"]
[Round "9"]
[White "chessdjw"]
[Black "Perecke"]
[Result "1-0"]
[WhiteElo "2679"]
[BlackElo "2196"]
[TimeControl "180+2"]
[EndTime "15:02:43 PST"]
[Termination "chessdjw won by resignation"]

1. c4 {[%clk 0:03:00.6]} 1... e5 {[%clk 0:03:00.4]} 2. Nc3 {[%clk 0:02:53.5]}
2... Nf6 {[%clk 0:02:58.5]} 3. Nf3 {[%clk 0:02:40.3]} 3... Nc6 {[%clk
0:02:55.6]} 4. g3 {[%clk 0:02:38.2]} 4... d5 {[%clk 0:02:56.6]} 5. cxd5 {[%clk
0:02:39.1]} 5... Nxd5 {[%clk 0:02:58.5]} 6. Bg2 {[%clk 0:02:40.7]} 6... Nb6
{[%clk 0:02:59.9]} 7. O-O {[%clk 0:02:38.7]} 7... Be7 {[%clk 0:03:01.3]} 8. d3
{[%clk 0:02:38.1]} 8... O-O {[%clk 0:03:00.8]} 9. Be3 {[%clk 0:02:39.1]} 9...
Be6 {[%clk 0:02:58.7]} 10. Rc1 {[%clk 0:02:32.7]} 10... Nd5 {[%clk 0:02:53.5]}
11. Nxd5 {[%clk 0:02:26.3]} 11... Bxd5 {[%clk 0:02:55.4]} 12. Qa4 {[%clk
0:02:26.9]} 12... a6 {[%clk 0:02:44.4]} 13. Rfd1 {[%clk 0:02:23.6]} 13... f5
{[%clk 0:02:38.3]} 14. Bc5 {[%clk 0:02:01.1]} 14... Bxc5 {[%clk 0:02:30.6]} 15.
Rxc5 {[%clk 0:02:03]} 15... Qd6 {[%clk 0:02:11.7]} 16. Rdc1 {[%clk 0:01:40.3]}
16... Rfc8 {[%clk 0:01:50.4]} 17. Nxe5 {[%clk 0:01:33.7]} 17... Bxg2 {[%clk
0:01:48.1]} 18. Qb3+ {[%clk 0:01:12.1]} 18... Bd5 {[%clk 0:01:42.9]} 19. Rxd5
{[%clk 0:01:12.9]} 19... Qe6 {[%clk 0:01:15.9]} 20. Rxc6 {[%clk 0:01:12.1]} 1-0

[Event "*** Titled Tuesday Blitz"]
[Site "Chess.com"]
[Date "2019.12.03"]
[Round "9"]
[White "przemekpiotrowski"]
[Black "Winehouse83"]
[Result "0-1"]
[WhiteElo "2421"]
[BlackElo "2530"]
[TimeControl "180+2"]
[EndTime "15:02:53 PST"]
[Termination "Winehouse83 won by resignation"]

1. d4 {[%clk 0:03:01.9]} 1... Nf6 {[%clk 0:03:00.8]} 2. Nf3 {[%clk 0:02:59.5]}
2... g6 {[%clk 0:03:01.6]} 3. g3 {[%clk 0:03:00.9]} 3... Bg7 {[%clk 0:03:03.1]}
4. Bg2 {[%clk 0:03:02.8]} 4... O-O {[%clk 0:03:04.6]} 5. O-O {[%clk 0:03:04.5]}
5... d6 {[%clk 0:03:06.2]} 6. c4 {[%clk 0:03:06.1]} 6... Nbd7 {[%clk 0:03:06.9]}
7. Nc3 {[%clk 0:03:07.1]} 7... e5 {[%clk 0:03:08.2]} 8. b3 {[%clk 0:03:08.7]}
8... Re8 {[%clk 0:03:04.1]} 9. e4 {[%clk 0:03:09.1]} 9... c6 {[%clk 0:03:04.1]}
10. Bb2 {[%clk 0:03:06.6]} 10... exd4 {[%clk 0:02:54.7]} 11. Nxd4 {[%clk
0:03:07.2]} 11... Nc5 {[%clk 0:02:55.9]} 12. Re1 {[%clk 0:03:04.4]} 12... a5
{[%clk 0:02:56.6]} 13. Qd2 {[%clk 0:03:00.1]} 13... Ng4 {[%clk 0:02:53.9]} 14.
f4 {[%clk 0:02:49.8]} 14... Qb6 {[%clk 0:02:53]} 15. Kh1 {[%clk 0:02:18.4]}
15... Nd3 {[%clk 0:02:43.7]} 16. Na4 {[%clk 0:01:46.9]} 16... Qa7 {[%clk
0:02:39]} 17. h3 {[%clk 0:01:36.7]} 17... Ngf2+ {[%clk 0:02:37.1]} 18. Kh2
{[%clk 0:01:34.9]} 18... Nxb2 {[%clk 0:02:18.6]} 19. Nxc6 {[%clk 0:01:17.7]}
19... bxc6 {[%clk 0:02:14]} 20. Nxb2 {[%clk 0:01:13.7]} 20... Bxb2 {[%clk
0:02:14.8]} 21. Qxb2 {[%clk 0:01:13.2]} 21... Nd3 {[%clk 0:02:15.8]} 22. Qf6
{[%clk 0:01:13.2]} 22... Nxe1 {[%clk 0:02:14.7]} 23. Rxe1 {[%clk 0:01:13.1]}
23... Qe7 {[%clk 0:02:15.6]} 24. Qd4 {[%clk 0:01:00.8]} 24... Bb7 {[%clk
0:02:16.8]} 25. h4 {[%clk 0:01:00.9]} 25... h5 {[%clk 0:02:15.2]} 26. Rf1 {[%clk
0:00:56.5]} 26... c5 {[%clk 0:02:13.9]} 27. Qd2 {[%clk 0:00:51.6]} 27... Bxe4
{[%clk 0:02:14.9]} 28. f5 {[%clk 0:00:51.5]} 28... Bxg2 {[%clk 0:02:14]} 29. f6
{[%clk 0:00:43]} 29... Qe2 {[%clk 0:02:13.9]} 0-1

[Event "*** Titled Tuesday Blitz"]
[Site "Chess.com"]
[Date "2019.12.03"]
[Round "9"]
[White "Vuk2000"]
[Black "Gentlejimmy7"]
[Result "1/2-1/2"]
[WhiteElo "2763"]
[BlackElo "2607"]
[TimeControl "180+2"]
[EndTime "15:03:03 PST"]
[Termination "Game drawn by repetition"]

1. e4 {[%clk 0:03:01.9]} 1... c5 {[%clk 0:03:00.2]} 2. Nc3 {[%clk 0:03:02.3]}
2... Nc6 {[%clk 0:03:00.7]} 3. g3 {[%clk 0:03:04.2]} 3... g6 {[%clk 0:03:01.2]}
4. Bg2 {[%clk 0:03:06.1]} 4... Bg7 {[%clk 0:03:02.7]} 5. d3 {[%clk 0:03:08]}
5... e6 {[%clk 0:03:04]} 6. Be3 {[%clk 0:03:09.2]} 6... b6 {[%clk 0:03:03.5]} 7.
Qd2 {[%clk 0:03:09.9]} 7... h6 {[%clk 0:03:03.4]} 8. Nge2 {[%clk 0:03:07.9]}
8... Nge7 {[%clk 0:03:04.9]} 9. O-O {[%clk 0:03:06.4]} 9... Bb7 {[%clk
0:03:05.6]} 10. a3 {[%clk 0:03:00.4]} 10... d5 {[%clk 0:03:04.9]} 11. exd5
{[%clk 0:02:57.8]} 11... exd5 {[%clk 0:03:06.8]} 12. d4 {[%clk 0:02:59.2]} 12...
Nf5 {[%clk 0:03:02.6]} 13. dxc5 {[%clk 0:02:15.5]} 13... d4 {[%clk 0:02:56.3]}
14. Nxd4 {[%clk 0:02:15.9]} 14... Nfxd4 {[%clk 0:02:55.7]} 15. Rfe1 {[%clk
0:01:50.9]} 15... O-O {[%clk 0:02:45.5]} 16. Bxh6 {[%clk 0:01:50.7]} 16... bxc5
{[%clk 0:02:45.8]} 17. Bg5 {[%clk 0:01:42.1]} 17... Bf6 {[%clk 0:02:34.6]} 18.
Bxf6 {[%clk 0:01:28.8]} 18... Nf3+ {[%clk 0:02:16.7]} 19. Bxf3 {[%clk
0:01:29.6]} 19... Qxd2 {[%clk 0:02:18.6]} 20. Nd5 {[%clk 0:01:13.3]} 20... Rfe8
{[%clk 0:02:09.6]} 21. Bc3 {[%clk 0:00:50.2]} 21... Qxc2 {[%clk 0:02:02.6]} 22.
Nf6+ {[%clk 0:00:49]} 22... Kf8 {[%clk 0:01:59.1]} 23. Nd7+ {[%clk 0:00:47.7]}
23... Kg8 {[%clk 0:01:57.8]} 24. Nf6+ {[%clk 0:00:48.9]} 24... Kf8 {[%clk
0:01:46.2]} 25. Nd7+ {[%clk 0:00:42.8]} 25... Kg8 {[%clk 0:01:45.4]} 26. Nf6+
{[%clk 0:00:42]} 1/2-1/2

[Event "*** Titled Tuesday Blitz"]
[Site "Chess.com"]
[Date "2019.12.03"]
[Round "9"]
[White "jefferyx"]
[Black "BlueWizzard"]
[Result "1-0"]
[WhiteElo "2906"]
[BlackElo "2751"]
[TimeControl "180+2"]
[EndTime "15:03:08 PST"]
[Termination "jefferyx won by resignation"]

1. c4 {[%clk 0:03:01.1]} 1... a6 {[%clk 0:02:59.4]} 2. Nc3 {[%clk 0:03:01.7]}
2... c5 {[%clk 0:03:00.4]} 3. g3 {[%clk 0:03:02.1]} 3... Nf6 {[%clk 0:03:01.9]}
4. Bg2 {[%clk 0:03:03.4]} 4... e6 {[%clk 0:03:03.5]} 5. e3 {[%clk 0:02:59.3]}
5... d5 {[%clk 0:03:04.8]} 6. cxd5 {[%clk 0:03:00.3]} 6... exd5 {[%clk
0:03:06.7]} 7. d4 {[%clk 0:03:00.9]} 7... Nc6 {[%clk 0:03:07]} 8. Nge2 {[%clk
0:03:00.3]} 8... Bg4 {[%clk 0:03:06.9]} 9. h3 {[%clk 0:03:00]} 9... Be6 {[%clk
0:03:06.9]} 10. O-O {[%clk 0:02:53]} 10... Bd6 {[%clk 0:03:08.1]} 11. dxc5
{[%clk 0:02:54.2]} 11... Bxc5 {[%clk 0:03:10]} 12. Nf4 {[%clk 0:02:55.9]} 12...
O-O {[%clk 0:03:10.6]} 13. Ncxd5 {[%clk 0:02:49.9]} 13... Nxd5 {[%clk
0:03:06.8]} 14. Nxd5 {[%clk 0:02:51.8]} 14... Ne5 {[%clk 0:03:03]} 15. e4 {[%clk
0:02:49.9]} 15... f5 {[%clk 0:03:02.6]} 16. Bf4 {[%clk 0:02:47.8]} 16... Bxd5
{[%clk 0:02:57]} 17. Qxd5+ {[%clk 0:02:12.8]} 17... Qxd5 {[%clk 0:02:55.5]} 18.
exd5 {[%clk 0:02:14.7]} 18... Nd3 {[%clk 0:02:57.1]} 19. Bc7 {[%clk 0:02:15.8]}
19... f4 {[%clk 0:02:52.7]} 20. Be4 {[%clk 0:02:11.2]} 20... Nxf2 {[%clk
0:02:53.3]} 21. Rxf2 {[%clk 0:02:07.2]} 21... Rac8 {[%clk 0:02:37.7]} 22. Rc1
{[%clk 0:01:15.7]} 22... Rxc7 {[%clk 0:01:47.8]} 23. Kg2 {[%clk 0:01:16.9]}
23... fxg3 {[%clk 0:01:21.7]} 24. Bxh7+ {[%clk 0:01:16.9]} 24... Kxh7 {[%clk
0:01:18.6]} 25. Rxf8 {[%clk 0:01:18.8]} 25... b6 {[%clk 0:01:15.7]} 26. b4
{[%clk 0:01:18.7]} 26... Bxf8 {[%clk 0:01:00.5]} 27. Rxc7 {[%clk 0:01:20.6]}
27... Bxb4 {[%clk 0:01:02.1]} 1-0

[Event "*** Titled Tuesday Blitz"]
[Site "Chess.com"]
[Date "2019.12.03"]
[Round "9"]
[White "ChessBitl"]
[Black "davigator"]
[Result "1-0"]
[WhiteElo "2368"]
[BlackElo "2289"]
[TimeControl "180+2"]
[EndTime "15:03:27 PST"]
[Termination "ChessBitl won by resignation"]

1. e4 {[%clk 0:03:01.1]} 1... c5 {[%clk 0:03:00.1]} 2. Nf3 {[%clk 0:03:01.9]}
2... Nc6 {[%clk 0:03:00.3]} 3. d4 {[%clk 0:03:03.3]} 3... cxd4 {[%clk
0:03:00.7]} 4. Nxd4 {[%clk 0:03:04.8]} 4... Nf6 {[%clk 0:03:02]} 5. Nc3 {[%clk
0:03:06]} 5... d6 {[%clk 0:03:02.8]} 6. Be3 {[%clk 0:03:05.3]} 6... Ng4 {[%clk
0:03:02.7]} 7. Bb5 {[%clk 0:03:06.1]} 7... Nxe3 {[%clk 0:03:02.4]} 8. fxe3
{[%clk 0:03:07.4]} 8... Bd7 {[%clk 0:03:02.6]} 9. Bxc6 {[%clk 0:03:08.7]} 9...
bxc6 {[%clk 0:03:02.7]} 10. O-O {[%clk 0:03:09.7]} 10... e5 {[%clk 0:03:02.5]}
11. Nf5 {[%clk 0:03:04.9]} 11... Bxf5 {[%clk 0:03:03.3]} 12. exf5 {[%clk
0:03:05.6]} 12... Be7 {[%clk 0:03:04.7]} 13. Ne4 {[%clk 0:03:02.1]} 13... d5
{[%clk 0:03:04.5]} 14. f6 {[%clk 0:02:59.9]} 14... Bxf6 {[%clk 0:03:05.4]} 15.
Nxf6+ {[%clk 0:02:59.9]} 15... gxf6 {[%clk 0:03:07.3]} 16. Qg4 {[%clk
0:02:52.8]} 16... Kf8 {[%clk 0:03:03.1]} 17. Qh4 {[%clk 0:02:51.7]} 17... h5
{[%clk 0:02:53.2]} 18. Rxf6 {[%clk 0:02:46.8]} 18... Rc8 {[%clk 0:02:50.4]} 19.
Raf1 {[%clk 0:02:48]} 19... Rh7 {[%clk 0:02:51.1]} 20. Qh3 {[%clk 0:02:37.1]}
20... Rc7 {[%clk 0:02:49.7]} 21. Qf5 {[%clk 0:02:34.2]} 21... Kg8 {[%clk
0:02:49.7]} 22. Qxe5 {[%clk 0:02:31]} 22... Qd7 {[%clk 0:02:42.3]} 23. Qg5+
{[%clk 0:02:27.2]} 23... Kf8 {[%clk 0:02:42.5]} 24. c3 {[%clk 0:02:16]} 24...
Qg4 {[%clk 0:02:42.4]} 25. Qxg4 {[%clk 0:02:09.3]} 25... hxg4 {[%clk 0:02:43]}
26. R1f4 {[%clk 0:02:09]} 26... Rg7 {[%clk 0:02:43.9]} 27. Kf2 {[%clk
0:02:09.1]} 27... Ke7 {[%clk 0:02:44.9]} 28. Kg3 {[%clk 0:02:05.1]} 28... Rc8
{[%clk 0:02:44.8]} 29. R6f5 {[%clk 0:01:59.4]} 29... Ke6 {[%clk 0:02:44.9]} 30.
Rh5 {[%clk 0:01:58]} 30... Rcg8 {[%clk 0:02:44]} 31. Rh6+ {[%clk 0:01:56.8]}
31... Kd7 {[%clk 0:02:44.5]} 32. Rff6 {[%clk 0:01:56.1]} 32... Rc8 {[%clk
0:02:42.5]} 33. Rd6+ {[%clk 0:01:54.9]} 33... Ke7 {[%clk 0:02:43.1]} 34. Rxc6
{[%clk 0:01:55.9]} 34... Rb8 {[%clk 0:02:43.6]} 35. Rc7+ {[%clk 0:01:54.4]}
35... Kd8 {[%clk 0:02:43.9]} 36. Rxa7 {[%clk 0:01:55.1]} 36... Rg8 {[%clk
0:02:45]} 37. b3 {[%clk 0:01:50.2]} 37... Rc8 {[%clk 0:02:44.3]} 38. Rd6+ {[%clk
0:01:48.5]} 38... Ke8 {[%clk 0:02:44.8]} 39. Rxd5 {[%clk 0:01:49.7]} 39... Rg6
{[%clk 0:02:45]} 40. Re5+ {[%clk 0:01:44.5]} 40... Kf8 {[%clk 0:02:45.5]} 41. c4
{[%clk 0:01:45.9]} 41... Rd8 {[%clk 0:02:45.4]} 42. Rf5 {[%clk 0:01:45.2]} 42...
f6 {[%clk 0:02:45]} 43. Rb5 {[%clk 0:01:40.4]} 43... Re8 {[%clk 0:02:41.2]} 44.
e4 {[%clk 0:01:38.4]} 44... Rxe4 {[%clk 0:02:40.9]} 45. Ra8+ {[%clk 0:01:37.2]}
45... Re8 {[%clk 0:02:41.9]} 46. Rxe8+ {[%clk 0:01:37.9]} 46... Kxe8 {[%clk
0:02:43.8]} 47. a4 {[%clk 0:01:33.9]} 47... Kd8 {[%clk 0:02:41.2]} 48. a5 {[%clk
0:01:32.9]} 48... Kc8 {[%clk 0:02:42.3]} 49. a6 {[%clk 0:01:33.9]} 49... Rg7
{[%clk 0:02:43.2]} 50. Rb7 {[%clk 0:01:32.9]} 50... Rg5 {[%clk 0:02:43]} 51. Rf7
{[%clk 0:01:32.9]} 51... Re5 {[%clk 0:02:38.5]} 52. a7 {[%clk 0:01:32.6]} 52...
Ra5 {[%clk 0:02:37.9]} 53. Kxg4 {[%clk 0:01:32.6]} 1-0

[Event "*** Titled Tuesday Blitz"]
[Site "Chess.com"]
[Date "2019.12.03"]
[Round "9"]
[White "MasterKroket"]
[Black "WPWPWP-2015"]
[Result "0-1"]
[WhiteElo "2425"]
[BlackElo "2544"]
[TimeControl "180+2"]
[EndTime "15:03:38 PST"]
[Termination "WPWPWP-2015 won by resignation"]

1. d4 {[%clk 0:03:01.9]} 1... Nf6 {[%clk 0:02:59.8]} 2. c4 {[%clk 0:03:02.6]}
2... e6 {[%clk 0:03:00.9]} 3. Nf3 {[%clk 0:03:03.5]} 3... b6 {[%clk 0:03:00.9]}
4. a3 {[%clk 0:03:03.2]} 4... Bb7 {[%clk 0:03:00.4]} 5. Nc3 {[%clk 0:03:04.8]}
5... Be7 {[%clk 0:02:58.9]} 6. Qc2 {[%clk 0:03:04]} 6... d5 {[%clk 0:02:56.3]}
7. cxd5 {[%clk 0:03:05.1]} 7... exd5 {[%clk 0:02:53.1]} 8. Bf4 {[%clk
0:03:05.6]} 8... O-O {[%clk 0:02:50.6]} 9. e3 {[%clk 0:03:06.3]} 9... c5 {[%clk
0:02:44.6]} 10. Bd3 {[%clk 0:03:06]} 10... Nbd7 {[%clk 0:02:42.4]} 11. Ne5
{[%clk 0:01:34.3]} 11... Rc8 {[%clk 0:02:34.4]} 12. Qe2 {[%clk 0:01:01.1]} 12...
Ne4 {[%clk 0:02:12.9]} 13. f3 {[%clk 0:01:00.4]} 13... cxd4 {[%clk 0:02:02.4]}
14. fxe4 {[%clk 0:00:58.8]} 14... dxc3 {[%clk 0:01:59.9]} 15. exd5 {[%clk
0:00:59.8]} 15... Nxe5 {[%clk 0:01:47.3]} 16. Bxe5 {[%clk 0:00:54.2]} 16... Qxd5
{[%clk 0:01:46.4]} 17. Bxc3 {[%clk 0:00:51.7]} 17... Rfd8 {[%clk 0:01:35.1]} 18.
Rd1 {[%clk 0:00:46.2]} 18... Bh4+ {[%clk 0:01:33.2]} 19. Kf1 {[%clk 0:00:39.6]}
19... Ba6 {[%clk 0:01:13.6]} 20. Qg4 {[%clk 0:00:35]} 20... Bxd3+ {[%clk
0:01:11]} 21. Kg1 {[%clk 0:00:32.1]} 21... Qg5 {[%clk 0:01:09]} 22. Qxg5 {[%clk
0:00:27.8]} 0-1

[Event "*** Titled Tuesday Blitz"]
[Site "Chess.com"]
[Date "2019.12.03"]
[Round "9"]
[White "FelixJoseYnojosa"]
[Black "vugarrasulov"]
[Result "1-0"]
[WhiteElo "2625"]
[BlackElo "2769"]
[TimeControl "180+2"]
[EndTime "15:03:46 PST"]
[Termination "FelixJoseYnojosa won by resignation"]

1. e4 {[%clk 0:03:01.9]} 1... c5 {[%clk 0:02:59.9]} 2. c3 {[%clk 0:03:03]} 2...
Nf6 {[%clk 0:03:00.2]} 3. e5 {[%clk 0:03:03.7]} 3... Nd5 {[%clk 0:03:01.8]} 4.
d4 {[%clk 0:03:05.2]} 4... cxd4 {[%clk 0:03:03.7]} 5. cxd4 {[%clk 0:03:06.9]}
5... e6 {[%clk 0:03:04.5]} 6. Nc3 {[%clk 0:03:07.8]} 6... Nxc3 {[%clk
0:03:05.5]} 7. bxc3 {[%clk 0:03:09.7]} 7... Qc7 {[%clk 0:03:06.9]} 8. Bd2 {[%clk
0:03:10.6]} 8... d6 {[%clk 0:03:08.3]} 9. f4 {[%clk 0:03:11.8]} 9... b6 {[%clk
0:03:09.2]} 10. Nf3 {[%clk 0:03:11]} 10... Bb7 {[%clk 0:03:10.8]} 11. Bd3 {[%clk
0:03:12.3]} 11... Be7 {[%clk 0:03:09.7]} 12. Qb1 {[%clk 0:03:09.9]} 12... Nd7
{[%clk 0:03:09.4]} 13. Bxh7 {[%clk 0:03:07.2]} 13... O-O-O {[%clk 0:03:10.2]}
14. Be4 {[%clk 0:03:00.7]} 14... g5 {[%clk 0:03:09.4]} 15. exd6 {[%clk
0:02:47.4]} 15... Bxd6 {[%clk 0:03:09.4]} 16. Bxb7+ {[%clk 0:02:41.3]} 16...
Qxb7 {[%clk 0:03:10.3]} 17. fxg5 {[%clk 0:02:39.1]} 17... f5 {[%clk 0:03:06.6]}
18. Qb3 {[%clk 0:02:34.4]} 18... e5 {[%clk 0:02:51.9]} 19. Qc4+ {[%clk
0:01:50.6]} 19... Kb8 {[%clk 0:02:51.1]} 20. dxe5 {[%clk 0:01:50.8]} 20... Nxe5
{[%clk 0:02:45.8]} 21. Nxe5 {[%clk 0:01:50.5]} 21... Bxe5 {[%clk 0:02:42.2]} 22.
O-O-O {[%clk 0:01:19.8]} 22... Rc8 {[%clk 0:02:42.3]} 23. Qb4 {[%clk 0:00:44.7]}
23... Qxg2 {[%clk 0:02:33.3]} 24. Bf4 {[%clk 0:00:36.5]} 24... Bxf4+ {[%clk
0:02:25.2]} 25. Qxf4+ {[%clk 0:00:38.4]} 25... Ka8 {[%clk 0:02:26.6]} 26. Kb1
{[%clk 0:00:39]} 26... Rc5 {[%clk 0:02:17]} 27. Ka1 {[%clk 0:00:34.7]} 27... Ra5
{[%clk 0:02:02.5]} 28. Qd2 {[%clk 0:00:31.8]} 28... Qc6 {[%clk 0:02:04]} 29.
Rhg1 {[%clk 0:00:30]} 29... Rb5 {[%clk 0:01:58.3]} 30. g6 {[%clk 0:00:28.7]}
30... Rxh2 {[%clk 0:01:59.7]} 31. Qd8+ {[%clk 0:00:24.4]} 31... Kb7 {[%clk
0:01:59.8]} 32. Qd7+ {[%clk 0:00:25.9]} 32... Qxd7 {[%clk 0:01:58]} 33. Rxd7+
{[%clk 0:00:27.8]} 33... Kc6 {[%clk 0:01:59.8]} 34. g7 {[%clk 0:00:26.2]} 34...
Ra5 {[%clk 0:01:59.1]} 35. g8=Q {[%clk 0:00:26.7]} 1-0

[Event "*** Titled Tuesday Blitz"]
[Site "Chess.com"]
[Date "2019.12.03"]
[Round "9"]
[White "SanchezKelvin"]
[Black "LonesomeGeorge1"]
[Result "0-1"]
[WhiteElo "2412"]
[BlackElo "2327"]
[TimeControl "180+2"]
[EndTime "15:03:52 PST"]
[Termination "LonesomeGeorge1 won by resignation"]

1. d4 {[%clk 0:03:01.9]} 1... Nf6 {[%clk 0:03:00.6]} 2. c4 {[%clk 0:03:03.6]}
2... e6 {[%clk 0:03:01.9]} 3. Nf3 {[%clk 0:03:04.1]} 3... d5 {[%clk 0:03:03.2]}
4. Nc3 {[%clk 0:03:03.7]} 4... a6 {[%clk 0:03:04.1]} 5. Bg5 {[%clk 0:03:03.2]}
5... dxc4 {[%clk 0:03:04.5]} 6. a4 {[%clk 0:03:04.1]} 6... Nc6 {[%clk
0:03:05.2]} 7. e3 {[%clk 0:03:05.3]} 7... Na5 {[%clk 0:03:06.2]} 8. Nd2 {[%clk
0:03:04.7]} 8... h6 {[%clk 0:03:00.9]} 9. Bxf6 {[%clk 0:03:05.1]} 9... Qxf6
{[%clk 0:03:01.5]} 10. Nxc4 {[%clk 0:03:06.2]} 10... Nxc4 {[%clk 0:02:58.2]} 11.
Bxc4 {[%clk 0:03:08.1]} 11... Bb4 {[%clk 0:02:57.3]} 12. O-O {[%clk 0:03:07.1]}
12... O-O {[%clk 0:02:58.4]} 13. Ne4 {[%clk 0:03:07.9]} 13... Qe7 {[%clk
0:02:57.4]} 14. Qc2 {[%clk 0:03:07.6]} 14... e5 {[%clk 0:02:51.6]} 15. dxe5
{[%clk 0:02:17.3]} 15... Qxe5 {[%clk 0:02:53.5]} 16. Ng3 {[%clk 0:02:17.8]}
16... Bd6 {[%clk 0:02:43.5]} 17. Rae1 {[%clk 0:02:12.2]} 17... Bd7 {[%clk
0:02:38.7]} 18. f4 {[%clk 0:02:10.8]} 18... Qa5 {[%clk 0:02:37.2]} 19. b3 {[%clk
0:02:08.4]} 19... b5 {[%clk 0:02:31.8]} 20. axb5 {[%clk 0:02:08.5]} 20... axb5
{[%clk 0:02:33.7]} 21. Bd3 {[%clk 0:02:09.2]} 21... Qa2 {[%clk 0:02:32.6]} 22.
Ne4 {[%clk 0:02:09.8]} 22... Qxc2 {[%clk 0:02:29.8]} 23. Bxc2 {[%clk 0:02:10.8]}
23... Bb4 {[%clk 0:02:28.8]} 24. Rd1 {[%clk 0:02:10.8]} 24... Bg4 {[%clk
0:02:26]} 25. Ra1 {[%clk 0:02:06.6]} 25... Be2 {[%clk 0:02:03]} 26. Rfb1 {[%clk
0:01:59.5]} 26... c5 {[%clk 0:01:36.9]} 27. Kf2 {[%clk 0:01:56.9]} 27... Bg4
{[%clk 0:01:37.6]} 28. h3 {[%clk 0:01:53.4]} 28... Be6 {[%clk 0:01:35.5]} 29.
Nd6 {[%clk 0:01:44.1]} 29... Rxa1 {[%clk 0:01:17]} 30. Rxa1 {[%clk 0:01:43.9]}
30... Rd8 {[%clk 0:01:18.5]} 31. Rd1 {[%clk 0:01:44.2]} 31... c4 {[%clk
0:01:05.6]} 32. Nxb5 {[%clk 0:01:41.8]} 32... Rxd1 {[%clk 0:01:06.3]} 33. Bxd1
{[%clk 0:01:42.8]} 33... cxb3 {[%clk 0:01:07.5]} 34. f5 {[%clk 0:01:19.1]} 34...
b2 {[%clk 0:01:06.1]} 35. Bc2 {[%clk 0:01:17.4]} 35... Ba2 {[%clk 0:01:07.1]}
0-1

[Event "*** Titled Tuesday Blitz"]
[Site "Chess.com"]
[Date "2019.12.03"]
[Round "9"]
[White "Sneakiest_Of_Snakes"]
[Black "aquaticpineapples"]
[Result "0-1"]
[WhiteElo "1826"]
[BlackElo "2232"]
[TimeControl "180+2"]
[EndTime "15:04:00 PST"]
[Termination "aquaticpineapples won by resignation"]

1. e4 {[%clk 0:03:01.8]} 1... d5 {[%clk 0:03:00.4]} 2. exd5 {[%clk 0:03:00.7]}
2... Qxd5 {[%clk 0:03:00.6]} 3. Nf3 {[%clk 0:03:02.6]} 3... Bg4 {[%clk 0:03:00]}
4. Be2 {[%clk 0:03:03.3]} 4... Nc6 {[%clk 0:03:01.1]} 5. O-O {[%clk 0:03:04.1]}
5... O-O-O {[%clk 0:03:02.3]} 6. d3 {[%clk 0:03:03.8]} 6... e5 {[%clk
0:03:02.8]} 7. c4 {[%clk 0:02:59.3]} 7... Qa5 {[%clk 0:03:01.5]} 8. Bd2 {[%clk
0:02:56.5]} 8... Bb4 {[%clk 0:03:01.4]} 9. a3 {[%clk 0:02:46.3]} 9... Bxf3
{[%clk 0:02:46]} 10. gxf3 {[%clk 0:02:18.4]} 10... Bxd2 {[%clk 0:02:42.6]} 11.
Nxd2 {[%clk 0:02:19.7]} 11... Nd4 {[%clk 0:02:36.8]} 12. Nb3 {[%clk 0:01:53.7]}
12... Qb6 {[%clk 0:02:15.1]} 13. Nxd4 {[%clk 0:01:30.1]} 13... Rxd4 {[%clk
0:02:12.6]} 14. Qa4 {[%clk 0:00:49.8]} 14... Nh6 {[%clk 0:01:56.5]} 15. Kh1
{[%clk 0:00:21.2]} 15... Rh4 {[%clk 0:01:53.7]} 16. Qb5 {[%clk 0:00:11.2]} 16...
Qf6 {[%clk 0:01:47.3]} 17. Rg1 {[%clk 0:00:07.7]} 17... Nf5 {[%clk 0:01:47]} 18.
f4 {[%clk 0:00:04.3]} 18... Nd4 {[%clk 0:01:42.1]} 19. Qd5 {[%clk 0:00:03.5]}
19... Qxf4 {[%clk 0:01:37.2]} 20. Rg2 {[%clk 0:00:02.1]} 20... Nxe2 {[%clk
0:01:32.9]} 21. Re1 {[%clk 0:00:03.5]} 21... Nd4 {[%clk 0:01:24.3]} 22. Rxe5
{[%clk 0:00:02.2]} 22... Nf3 {[%clk 0:01:17]} 23. Re4 {[%clk 0:00:02.1]} 23...
Qxh2+ {[%clk 0:01:14.7]} 0-1

[Event "*** Titled Tuesday Blitz"]
[Site "Chess.com"]
[Date "2019.12.03"]
[Round "9"]
[White "ural58"]
[Black "earling8018"]
[Result "1-0"]
[WhiteElo "2343"]
[BlackElo "1928"]
[TimeControl "180+2"]
[EndTime "15:04:08 PST"]
[Termination "ural58 won by resignation"]

1. e4 {[%clk 0:02:56]} 1... e5 {[%clk 0:02:59.7]} 2. f4 {[%clk 0:02:52.8]} 2...
Bc5 {[%clk 0:02:58.7]} 3. Nf3 {[%clk 0:02:51.4]} 3... d6 {[%clk 0:03:00.1]} 4.
c3 {[%clk 0:02:45.4]} 4... Nf6 {[%clk 0:03:00.4]} 5. fxe5 {[%clk 0:02:41.5]}
5... dxe5 {[%clk 0:02:59.5]} 6. Nxe5 {[%clk 0:02:43.4]} 6... Nxe4 {[%clk
0:02:44.9]} 7. d4 {[%clk 0:02:26]} 7... Qh4+ {[%clk 0:02:15.2]} 8. g3 {[%clk
0:02:22.1]} 8... Nxg3 {[%clk 0:02:13.2]} 9. hxg3 {[%clk 0:02:21.8]} 9... Qxh1
{[%clk 0:01:05.4]} 10. dxc5 {[%clk 0:02:16.7]} 10... O-O {[%clk 0:00:56.3]} 11.
Qf3 {[%clk 0:02:14.3]} 11... Qg1 {[%clk 0:00:47.9]} 12. Be3 {[%clk 0:02:12.9]}
12... Qh2 {[%clk 0:00:45.2]} 13. Nd2 {[%clk 0:02:10.6]} 13... Nc6 {[%clk
0:00:36.6]} 14. Nxc6 {[%clk 0:01:45.2]} 14... bxc6 {[%clk 0:00:36.8]} 15. O-O-O
{[%clk 0:01:45.5]} 15... Be6 {[%clk 0:00:33.7]} 16. Bd3 {[%clk 0:01:20.7]} 16...
Bd5 {[%clk 0:00:31.8]} 17. Be4 {[%clk 0:01:13.4]} 17... Bxe4 {[%clk 0:00:22.2]}
18. Nxe4 {[%clk 0:01:11.4]} 18... Qh3 {[%clk 0:00:17.9]} 19. Rh1 {[%clk
0:01:03.6]} 19... Qd7 {[%clk 0:00:13.9]} 20. Qh5 {[%clk 0:00:57.6]} 20... Qf5
{[%clk 0:00:08.1]} 21. Qxf5 {[%clk 0:00:57.4]} 1-0